{"text_format":"2","workbook":"xlsx","n_sheets":1,"sheets":["TAC Studypath"],"not_rendered":{"charts":0,"images":0,"macros":0,"external_links":0,"defined_names":1,"comments":0,"pivot_tables":0},"unopened":[],"bounds":{"document_bytes":16777216,"sheet_cells":100000,"run_cost":"one","rows_first":2000,"rows_last":500,"rows_between":2000,"halvings":0,"cell_chars":16384,"cell_head_chars":4096},"cells_cut":0,"cells_raw":0,"read":"whole","date_system":"1900"}

{"sheet":"TAC Studypath","index":0,"n_rows":164,"n_cols":33,"rows_kept":164,"cut":false,"hidden":false,"merged":[[42,30,44,30],[28,2,28,27],[30,2,30,32],[34,2,34,32],[3,32,5,32],[40,2,40,27],[3,18,3,20],[3,21,3,23],[3,24,3,26],[3,27,5,27],[3,30,5,30],[3,12,3,14],[3,15,3,17],[4,12,4,13],[4,14,5,14],[4,15,4,16],[4,17,5,17],[4,18,4,19],[7,2,7,32],[20,2,20,32],[42,32,44,32],[43,3,43,4],[43,5,44,5],[43,6,43,7],[3,1,5,1],[3,2,5,2],[3,3,3,5],[3,6,3,8],[3,9,3,11],[4,3,4,4],[4,5,5,5],[4,6,4,7],[4,8,5,8],[4,9,4,10],[4,11,5,11],[45,0,66,0],[45,2,45,32],[53,2,53,27],[55,2,55,32],[66,2,66,27],[4,20,5,20],[4,21,4,22],[4,23,5,23],[4,24,4,25],[4,26,5,26],[3,28,5,28],[3,29,5,29],[3,31,5,31],[42,0,44,0],[42,1,44,1],[42,2,44,2],[42,3,42,5],[42,6,42,8],[42,9,42,11],[6,0,40,0],[6,2,6,32],[42,12,42,14],[42,15,42,17],[3,0,5,0],[43,8,44,8],[43,9,43,10],[43,11,44,11],[42,18,42,20],[42,21,42,23],[42,24,42,26],[42,27,44,27],[43,12,43,13],[43,14,44,14],[43,15,43,16],[43,17,44,17],[43,18,43,19],[43,20,44,20],[43,21,43,22],[43,23,44,23],[43,24,43,25],[43,26,44,26],[42,28,44,28],[42,29,44,29],[42,31,44,31],[89,27,91,27],[89,28,91,28],[90,23,91,23],[90,24,90,25],[90,26,91,26],[68,0,74,0],[68,2,68,31],[70,2,70,31],[74,2,74,27],[76,0,85,0],[76,2,76,32],[85,2,85,27],[89,0,91,0],[89,1,91,1],[89,2,91,2],[89,3,89,5],[89,6,89,8],[89,9,89,11],[89,12,89,14],[90,18,90,19],[90,20,91,20],[151,2,151,27],[153,0,161,0],[153,2,153,32],[161,2,161,27],[163,2,163,27],[131,0,139,0],[131,2,131,32],[139,2,139,27],[142,0,150,0],[142,2,142,32],[150,2,150,27],[92,0,127,0],[92,2,92,32],[108,2,108,27],[110,2,110,32],[127,2,127,27],[129,0,129,32],[90,14,91,14],[90,15,90,16],[90,17,91,17],[90,21,90,22],[89,29,91,29],[89,31,91,31],[89,32,91,32],[90,3,90,4],[90,5,91,5],[90,6,90,7],[90,8,91,8],[90,9,90,10],[90,11,91,11],[90,12,90,13],[89,15,89,17],[89,18,89,20],[89,21,89,23],[89,24,89,26]]}
["Last amendment: 28/03/2024"]
["Studypath for students starting their studies in September 2024 or after!"]
[]
["Tourism & catering TAC BSc","Code","Course","1st Semester",null,null,"2nd semester",null,null,"3rd Semester",null,null,"4th Semester",null,null,"5th Semester",null,null,"6th Semester",null,null,"7th Semester",null,null,"8th Semester",null,null,"Assessment","Credit","Course enrolment\nPre-requisites","Exam\nPre-requisites","Lecturers in charge","Lecturer"]
[null,null,null,"hours/week",null,"Credit","hours/week",null,"Credit","hours/week",null,"Credit","hours/week",null,"Credit","hours/week",null,"Credit","hours/week",null,"Credit","hours/week",null,"Credit","hours/week",null,"Credit"]
[null,null,null,"Lect.","Sem",null,"Lect.","Sem.",null,"Lect.","Sem.",null,"Lect.","Sem.",null,"Lect.","Sem.",null,"Lect.","Sem.",null,"Lect.","Sem.",null,"Lect.","Sem."]
["A. Economic, methodological and business basic module",null,"Compulsory courses"]
[null,null,"Methodological courses"]
[null,"60A207-2","Principles of Econmics",2,null,2,{"$nulls":21},"Exam",2,null,null,"Nagy Benedek","Nagy Benedek"]
[null,"60A101","Calculus ",1,null,2,{"$nulls":21},"Exam",2,null,"Calculus seminar","Szabó Tamás","TTIK-s oktatók"]
[null,"60A102-2","Calculus ",null,2,2,{"$nulls":21},"Term mark",2,null,null,"Szabó Tamás","TTIK-s oktatók"]
[null,"60A104","Linear Algebra ",null,null,null,1,null,2,{"$nulls":18},"Exam",{"$f":"F12+I12+L12+O12+R12+U12","v":2},null,"Linear algebra seminar","Kátai-Urbán Kamilla","TTIK-s oktatók"]
[null,"60A105-2","Linear Algebra ",{"$nulls":4},2,2,{"$nulls":18},"Term mark",2,null,null,"Kátai-Urbán Kamilla","TTIK-s oktatók"]
[null,"60A108","Statistics I",{"$nulls":6},2,null,3,{"$nulls":15},"Exam",3,null,"Statistics I seminar","Kovács Péter","Kovács Péter"]
[null,"60A109","Statistics I",{"$nulls":7},2,3,{"$nulls":15},"Term mark",3,null,null,"Kovács Péter","Kovács Péter"]
[null,"60A110","Statistics II",{"$nulls":9},2,null,3,{"$nulls":12},"Exam",3,"Statistics I","Statistics II seminar","Kovács Péter","Kovács Péter"]
[null,"60A111","Statistics II",{"$nulls":10},2,3,{"$nulls":12},"Term mark",3,"Statistics I",null,"Kovács Péter","Kovács Péter"]
[null,"60A106","Probability ",{"$nulls":6},2,null,3,{"$nulls":15},"Exam",3,"Calculus ","Probability seminar","Szűcs Gábor","TTIK-s oktatók"]
[null,"60A107-2","Probability ",{"$nulls":7},1,1,{"$nulls":15},"Term mark",1,"Calculus ",null,"Szűcs Gábor","TTIK-s oktatók"]
[null,"60A103-2","Informatics ",null,2,0,{"$nulls":21},"Term mark",0,null,null,"Farkas Richárd","TTIK-s oktatók"]
[null,null,"Economic courses"]
[null,"60A201","Microeconomics ",null,null,null,2,null,3,{"$nulls":18},"Exam",{"$f":"F22+I22+L22+O22+R22+U22","v":3},"Principles of Econmics","Microeconomics seminar","Nagy Benedek","Nagy Bendek"]
[null,"60A202","Microeconomics ",{"$nulls":4},2,3,{"$nulls":18},"Term mark",3,"Principles of Econmics",null,"Nagy Benedek","Bodnár Gábor"]
[null,"60A203","Macroeconomics ",{"$nulls":6},2,null,3,{"$nulls":15},"Exam",3,"Principles of Econmics","Macroeconomics seminar","Nagy Benedek","Nagy Bendek"]
[null,"60A204","Macroeconomics ",{"$nulls":7},2,3,{"$nulls":15},"Term mark",3,"Principles of Econmics",null,"Nagy Benedek","Nagy Bendek"]
[null,"60A205","Introduction to Environmental Economics",null,null,null,2,null,3,{"$nulls":18},"Exam",3,null,null,"Málovics György","Málovics György"]
[null,"60A206","Introduction to Finance",{"$nulls":6},2,null,3,{"$nulls":15},"Exam",3,"Principles of Econmics",null,"Kiss Gábor Dávid","Kiss Gábor Dávid"]
[null,"60B101-2","Business Law",null,null,null,3,null,4,{"$nulls":18},"Exam",4,null,null,"Nagy Csongor István","Császár Mátyás"]
[null,null,"Sum total credits of A module compulsory",{"$nulls":25},{"$f":"SUM(AC9:AC28)","v":48}]
[]
[null,null,"Semi-optional courses  Required credits: 6"]
[null,"60A406","Economic policy ",{"$nulls":9},2,null,3,null,null,null,2,null,3,{"$nulls":6},{"$f":"IF(U32=\"GY\",\"Term mark\", \"Exam\")","v":"Exam"},3,"Principles of Econmics",null,"Szanyi Miklós","Nagy Benedek"]
[null,"60A208","Economic Fundamentals of EU integration",{"$nulls":9},2,null,3,null,null,null,2,null,3,{"$nulls":6},"Exam",3,"Principles of Econmics",null,"Somosi Sarolta","Pelle Anita"]
[null,"60B203","Introduction to sociology ",2,null,3,null,null,null,2,null,3,null,null,null,2,null,3,{"$nulls":9},"Exam",3,null,null,"Balogh Iván","Balogh Iván"]
[null,null,"Optional courses  Required credits: 6"]
[null,"60B204","The EU in the Global Economy",{"$nulls":9},2,null,3,null,null,null,2,null,3,{"$nulls":6},{"$f":"IF(U36=\"GY\",\"Term mark\", \"Exam\")","v":"Exam"},3,null,null,"Udvari Beáta","Udvari Beáta"]
[null,"60A310","Economic geography ",null,null,null,2,null,3,null,null,null,2,null,3,null,null,null,2,null,3,{"$nulls":6},"Exam",3,null,null,"Boros Lajos","Boros Lajos"]
[null,"60D106","Environmental Policy",null,null,null,2,null,3,null,null,null,2,null,3,null,null,null,2,null,3,{"$nulls":6},"Exam",3,null,null,"Gébert Judit","Málovics György"]
[null,"BAM-XSE","University X courses"]
[null,"ACCA","Course completed abroad"]
[null,null,"Sum total credits of A module (compulsory+semi-optional+optional)",{"$nulls":25},60]
[]
[null,"Code","Course","1st Semester",null,null,"2nd semester",null,null,"3rd Semester",null,null,"4th Semester",null,null,"5th Semester",null,null,"6th Semester",null,null,"7th Semester",null,null,"8th Semester",null,null,"Assessment","Credit","Pre-requisite","Exam\nPre-requisites","Lecturers in charge","Lecturer"]
[null,null,null,"hours/week",null,"Credit","hours/week",null,"Credit","hours/week",null,"Credit","hours/week",null,"Credit","hours/week",null,"Credit","hours/week",null,"Credit","hours/week",null,"Credit","hours/week",null,"Credit"]
[null,null,null,"Lect.","Sem",null,"Lect.","Sem.",null,"Lect.","Sem.",null,"Lect.","Sem.",null,"Lect.","Sem.",null,"Lect.","Sem.",null,"Lect.","Sem.",null,"Lect.","Sem."]
["B1 Business module",null,"Compulsory courses"]
[null,"60A302","Management ",{"$nulls":6},2,null,3,{"$nulls":15},"Exam",3,null,"Management seminar","Imreh Szabolcs","Kürtösi Zsófia"]
[null,"60B103","Management ",{"$nulls":7},2,2,{"$nulls":15},"Term mark",2,null,null,"Imreh Szabolcs","Markmen. Szakcsop"]
[null,"60A303","Marketing",2,null,3,{"$nulls":21},"Exam",3,null,null,"Prónay Szabolcs","Prónay Szabolcs"]
[null,"60C107","Human Resource Management",{"$nulls":12},2,null,3,{"$nulls":9},"Exam",3,"Management ",null,null,"Kürtösi Zsófia"]
[null,"60A306-2","Accounting and Taxation",{"$nulls":6},2,null,3,{"$nulls":15},"Exam",3,null,"Accounting and Taxation seminar","Tóth Balázs","Kovács Zsuzsanna\nTóth Balázs"]
[null,"60A307-2","Accounting and Taxation",{"$nulls":7},2,3,{"$nulls":15},"Term mark",3,null,null,"Tóth Balázs","Kovács Zsuzsanna\nTóth Balázs"]
[null,"60C103-2","Corporate finance ",{"$nulls":9},1,1,4,{"$nulls":12},"Exam",4,null,null,"Kiss Gábor Dávid","Kiss Gábor Dávid"]
[null,null,"Sum total credits of B1 module compulsory",{"$nulls":25},{"$f":"SUM(AC46:AC53)","v":21}]
[]
[null,null,"Semi-optional\nRequired credits: 8"]
[null,"60B106","Introduction to econometrics ",{"$nulls":15},2,null,3,{"$nulls":6},"Exam",3,"Statistics II",null,"Szakálné Kanó Izabella","Nagy Benedek"]
[null,"60C106","Operations Management",{"$nulls":12},2,null,3,{"$nulls":9},"Exam",3,"Management ",null,"Megyeri Eszter","Megyeri Eszter"]
[null,"60C201","Market research ",{"$nulls":9},1,1,4,null,null,null,1,1,4,{"$nulls":6},"Term mark",4,"Statistics I",null,"Hetesi Erzsébet","Kéri Anita"]
[null,"60B108","Social law  ",null,null,null,2,null,3,null,null,null,2,null,3,null,null,null,2,null,3,{"$nulls":6},"Exam",3,null,null,"Hajdú József","Hajdú József"]
[null,"60B102-2","Labour law ",{"$nulls":9},2,null,3,{"$nulls":12},"Exam",3,null,null,"Hajdú József","Lukács Adrienn"]
[null,"60A305","Organisational behaviour ",{"$nulls":9},2,null,3,null,null,null,2,null,3,{"$nulls":6},"Exam",3,null,null,"Kincsesné Vajda Beáta","Kincsesné Vajda Beáta"]
[null,"60C208-3","Sustainable local economic development",{"$nulls":6},1,2,5,null,null,null,1,2,5,{"$nulls":9},"Exam",5,"Microeconomics ",null,"Bajmócy Zoltán","Bajmócy Zoltán\nMálovics György"]
[null,"60A304-2","Marketing",null,2,2,{"$nulls":21},"Term mark",2,null,null,"Prónay Szabolcs","Markmen Szakcsop"]
[null,"60B107","Excel Access for Business",{"$nulls":10},2,3,{"$nulls":4},2,3,{"$nulls":6},"Term mark",3,null,null,"Kovács Péter","Kovács Péter"]
[null,"BCCA","Course completed abroad"]
[null,null,"Sum total credits of B1 module (compulsory+semi-optional)",{"$nulls":25},29]
[]
["B2 Language module",null,"Compulsory courses"]
[null,"60B200","Criteria exam in forieng language",{"$nulls":8},0,null,null,0,null,null,0,null,null,0,null,null,0,null,null,null,"Pass / failed",0,null,null,"Lévai Judit"]
[null,null,"Semi-optional\nRequired credits: 4"]
[null,"XN0071","Business Language I ",{"$nulls":7},4,4,null,4,4,null,4,4,null,4,4,{"$nulls":6},"Term mark",12,null,"Simon Péter (IKI)","IKI"]
[null,"60B206","Hungarian Language and Culture for Beginners I",null,4,4,{"$nulls":4},4,4,{"$nulls":4},4,4,{"$nulls":9},"Term mark",4,null,"Durst Péter","Durst Péter (IKI?)"]
[null,"BCCA-S","Course completed abroad",{"$nulls":25},2]
[null,null,"Sum total credits of B2 module ",{"$nulls":25},4]
[]
["B3 Competence module",null,"Optional\nRequired credits: 4"]
[null,"60B301","Communication practices ",{"$nulls":4},2,2,{"$nulls":4},2,2,{"$nulls":4},2,2,{"$nulls":6},"Term mark",2,null,null,"Málovics Éva","Farkas Gergely"]
[null,"60C220-3","Public Speaking and Presentation Skills",{"$nulls":4},2,2,{"$nulls":4},2,2,{"$nulls":4},2,2,{"$nulls":6},"Term mark",2,null,null,"Kürtösi Zsófia","Kürtösi Zsófia"]
[null,"60C217","Conflict Management Training",{"$nulls":13},2,2,null,2,2,{"$nulls":6},"Term mark",2,null,null,"Kincsesné Vajda Beáta","Málovics Éva"]
[null,"60B207","Hungarian Language and Culture for Beginners II",{"$nulls":4},4,4,{"$nulls":4},4,4,{"$nulls":4},4,4,{"$nulls":6},"Term mark",4,"Hungarian Language and Culture for Beginners I",null,"Durst Péter","Durst Péter (IKI?)"]
[null,"60D108","Service Learning",{"$nulls":7},2,2,null,2,2,null,2,2,null,2,2,{"$nulls":6},"Term mark",2,null,null,"Juhász Judit","Juhász Judit"]
[null,"60B208","Developmental English I",null,4,4,{"$nulls":21},"Term\nMark",4,null,null,"Apjokné Mécs Erzsébet","Apjokné Mécs Erzsébet"]
[null,"60B209","Developmental English II",{"$nulls":4},4,4,{"$nulls":18},"Term\nMark",4,"Developmental English I",null,"Apjokné Mécs Erzsébet","Apjokné Mécs Erzsébet"]
[null,"BCCA-C","Course completed abroad"]
[null,null,"Sum total credits of B3 module ",{"$nulls":25},4]
[]
[]
[]
["Modul","Code","Course","1st Semester",null,null,"2nd semester",null,null,"3rd Semester",null,null,"4th Semester",null,null,"5th Semester",null,null,"6th Semester",null,null,"7th Semester",null,null,"8th Semester",null,null,"Assessment","Credit","Pre-requisite",null,"Lecturers in charge","Lecturer"]
[null,null,null,"hours/week",null,"Credit","hours/week",null,"Credit","hours/week",null,"Credit","hours/week",null,"Credit","hours/week",null,"Credit","hours/week",null,"Credit","hours/week",null,"Credit","hours/week",null,"Credit"]
[null,null,null,"Lect.","Sem",null,"Lect.","Sem.",null,"Lect.","Sem.",null,"Lect.","Sem.",null,"Lect.","Sem.",null,"Lect.","Sem.",null,"Lect.","Sem.",null,"Lect.","Sem."]
["C1 General Tourism module",null,"Compulsory courses"]
[null,"61C101","Basics of tourism  ",2,null,3,{"$nulls":21},"Exam",3,null,null,"Pusztai Bertalan  ","Pusztai Bertalan"]
[null,"61C102","Toursim marketing ",null,null,null,2,null,3,{"$nulls":18},"Exam",3,"Basics of tourism  ",null,"Prónay Szabolcs  ","Prónay Szabolcs"]
[null,"61C103","Basics of the hotel business ",null,null,null,2,null,3,{"$nulls":18},"Exam",3,null,null,"Molnár Elisabeta","Molnár Elisabeta"]
[null,"61C104","Catering studies ",{"$nulls":13},2,3,{"$nulls":9},"Term mark",3,null,null,"Kozák Hajnalka","Németh-Hehl Szilvia"]
[null,"61C106","Basics of tour operation ",{"$nulls":6},2,null,3,{"$nulls":15},"Exam",3,null,null,"Molnár Elisabeta","Molnár Elisabeta"]
[null,"61C107","Touristic organisations and their management  ",{"$nulls":10},2,3,{"$nulls":12},"Term mark",3,null,null,"Molnár Elisabeta","Nagy Andrea"]
[null,"61C108","Starting and Managing Small Businesses in Tourism",{"$nulls":16},2,3,{"$nulls":6},"Term mark",3,"Human Resource Managmenet",null,"Prónay Szabolcs  ","Imreh Szabolcs, Prónay Bece, Prónay Szabolcs"]
[null,"61C109","Basics of intercultural communication  ",{"$nulls":12},2,null,3,{"$nulls":9},"Exam",3,null,null,"Pusztai Bertalan","Pusztai Bertalan"]
[null,"61C110","Touristic products and product groups ",2,null,3,{"$nulls":21},"Exam",3,null,null,"Hegedűs Gábor  ","Martyin-Csamangó Zita"]
[null,"61C111","Touristic utilisation of cultural resource",{"$nulls":12},2,null,3,{"$nulls":9},"Exam",3,null,null,"Pusztai Bertalan  ","Pusztai Bertalan"]
[null,"61C112","Economy of tourism ",{"$nulls":9},2,null,3,{"$nulls":12},"Exam",3,null,null,"Molnár Elisabeta","Molnár Elisabeta"]
[null,"61C113","International touristic geography ",2,null,3,{"$nulls":21},"Exam",3,null,null,"Boros Lajos  ","Boros Lajos"]
[null,"61C114","Touristical challanges and opportunities of a triple-border region",{"$nulls":16},2,3,{"$nulls":6},"Term mark",3,"Basics of tourism  ",null,"Pusztai Bertalan  ","Molnár Elisabeta"]
[null,"61C115","Event organisation and protocol ",{"$nulls":4},2,3,{"$nulls":18},"Term mark",3,null,null,"Hegedűs Anita","Hegedűs Anita"]
[null,"61C116","Toursim and media ",{"$nulls":15},2,null,3,{"$nulls":6},"Exam",3,null,null,"Pusztai Bertalan","Pusztai Bertalan"]
[null,null,"Sum total credits of C1 module compulsory",{"$nulls":25},48]
[]
[null,null,"Semi-optional courses\nRequired credits: 15"]
[null,"61C105","Hungary's touristic geography  ",2,null,3,{"$nulls":21},"Exam",3,null,null,"Bajmócy Péter  ","Bajmócy Péter  "]
[null,"61C117","Online and e-turism ",{"$nulls":7},2,3,{"$nulls":4},2,3,{"$nulls":9},"Term mark",3,null,null,"Nagy Andrea","Nagy Andrea"]
[null,"61C118","Regional and urban marketing ",{"$nulls":12},2,null,3,{"$nulls":9},"Exam",3,null,null,"Boros Lajos","Boros Lajos"]
[null,"61C303","Information systems of travel agencies ",{"$nulls":16},2,3,{"$nulls":6},"Term mark",3,null,null,"Rakonczai Réka","Rakonczai Réka"]
[null,"61C119","Vine and destillates in catering ",{"$nulls":13},2,3,{"$nulls":9},"Term mark",3,null,null,"Horkay András","Németh-Hehl Szilvia"]
[null,"61C120","Touristic tenders and their management  ",{"$nulls":10},2,3,{"$nulls":4},2,3,{"$nulls":6},"Term mark",3,"Basics of tourism, Management",null,"Stampf Mariann","Stampf Mariann"]
[null,"61C121","Sustaniable mobility management",{"$nulls":6},2,null,3,null,null,null,2,null,3,{"$nulls":9},"Exam",3,null,null,"Málovics György","Méreiné Berki Boglárka"]
[null,"61C122","Toursim research ",{"$nulls":10},2,3,{"$nulls":4},2,3,{"$nulls":6},"Term mark",3,"Statistics I.",null,"Kazár Klára","Kazár Klára"]
[null,"61C123","Tourism creativity and innovation with special focus on the Banat region",{"$nulls":6},2,null,3,null,null,null,2,null,3,{"$nulls":9},"Exam",3,null,null,"Nagy Andrea","Nagy Andrea"]
[null,"61C124","Decision making of toursits",{"$nulls":9},2,null,3,null,null,null,2,null,3,{"$nulls":6},"Exam",3,"Marketing",null,"Slavica Tomic","Slavica Tomic"]
[null,"61C125","Sustainable tourism",{"$nulls":9},2,null,3,null,null,null,2,null,3,{"$nulls":6},"Exam",3,null,null,"Méreiné Berki Boglárka"]
[null,"61C126","Rural tourism",{"$nulls":7},2,3,{"$nulls":4},2,3,{"$nulls":9},"Term mark",3,null,null,"Stampf Mariann"]
[null,"61C127","Wine and gastro tourism",{"$nulls":10},2,3,{"$nulls":4},3,3,{"$nulls":6},"Term mark",3,null,null,"Stampf Mariann"]
[null,"61C128","Customer Experience in HoReCa",{"$nulls":15},2,null,3,{"$nulls":6},"Exam",3,"Marketing",null,"Garamhegyi Ábel","Garamhegyi Ábel"]
[null,"61C129","Advanced catering studies",{"$nulls":16},2,3,{"$nulls":6},"Exam",3,"Catering studies",null,"Kállay Ákos","Kállay Ákos"]
[null," CCCA","Course completed abroad"]
[null,null,"Sum total credits of C1 module (compulsory+semi-optional)",{"$nulls":25},63]
[]
["C2 OR C3 module should be chosen and completed"]
[]
["C2. Specilaization: \nHotel and health toursim",null,"Compulsory courses"]
[null,"61C200","Different forms of accommodation",{"$nulls":16},2,3,{"$nulls":6},"Exam",3,"Basics of the hotel business ",null,"Vida György","Vida György"]
[null,"61C305","Hotel studies ",{"$nulls":10},2,3,{"$nulls":12},"Term mark",3,"Basics of the hotel business ",null,"Szabó Mihály","Gál István"]
[null,"61C306","Hotel management  ",{"$nulls":13},2,3,{"$nulls":9},"Term mark",3,"Basics of the hotel business ",null,"Gál István","Gál István"]
[null,"61C307","Medical hotel  management ",{"$nulls":16},2,3,{"$nulls":6},"Term mark",3,null,null,"Berta Zsolt","Berta Zsolt"]
[null,"61C205","Basics of health tourism ",{"$nulls":9},2,null,3,{"$nulls":12},"Exam",3,null,null,"Pál Viktor   ","Pál Viktor"]
[null,"61C206","Basics of health tourism ",{"$nulls":10},2,2,{"$nulls":12},"Term mark",2,null,null,"Pál Viktor  ","Pál Viktor"]
[null,"61C207","Health tourism products ",{"$nulls":13},2,3,{"$nulls":9},"Term mark",3,"Basics of health tourism ",null,"Martyin-Csamangó Zita   ","Martyin-Csamangó Zita   "]
[null,null,"Sum total credits of C2 specialization",{"$nulls":25},{"$f":"SUM(AC133:AC139)","v":20}]
[]
[]
["C3 specialization: Tourism operation and  management",null,"Compulsory courses"]
[null,"61C301","Travel agency marketing ",{"$nulls":9},2,null,3,{"$nulls":12},"Exam",3,"Toursim marketing ",null,"Prónay Szabolcs","Prónay Szabolcs"]
[null,"61C302","Travel agency marketing ",{"$nulls":10},2,2,{"$nulls":12},"Term mark",2,"Toursim marketing ",null,"Prónay Szabolcs","Prónay Szabolcs"]
[null,"61C201","Spatial economic relations",{"$nulls":12},2,null,3,{"$nulls":9},"Exam",3,"Microeconomics",null,"Vas Zsófia"]
[null,"61C202","Destination and attraction development ",{"$nulls":10},2,3,{"$nulls":12},"Term mark",3,null,null,"Hegedűs Gábor   ","Hegedűs Gábor"]
[null,"61C203","Touristic destination marketing",{"$nulls":16},2,3,{"$nulls":6},"Term mark",3,"Toursim marketing ",null,"Ács Szilvia","Stampf Mariann"]
[null,"61C204","Cultural management ",{"$nulls":13},2,3,{"$nulls":9},"Term mark",3,null,null,"Hegedűs Anita   ","Hegedűs Anita"]
[null,"61C304","Basics of guiding tours ",{"$nulls":16},2,3,{"$nulls":6},"Term mark",3,null,null,"Prónay Bence","Prónay Bence"]
[null,null,"Sum total credits of C3 specialization",{"$nulls":25},{"$f":"SUM(AC144:AC150)","v":20}]
[null,null,"Sum total of C modules (C1 + C2 or C3 specialization ",{"$nulls":25},83]
[]
["D. Thesis module",null,"Compulsory courses"]
[null,"60D502","Thesis consultation",{"$nulls":22},2,2,"Term mark",2,null,null,"Technical Assistant","supervisors"]
[null,"60C227","Extended academic writing",{"$nulls":10},2,3,{"$nulls":12},"Term mark",3,null,null,"Pusztai-Varga Ildikó","Pusztai-Varga Ildikó"]
[null,"60D505","Thesis research methodology ",{"$nulls":15},2,null,3,{"$nulls":6},"Exam",3,"Statistics II",null,"Vas Zsófia","Vas Zsófia"]
[null,"60D506","Introducion to Social Research",{"$nulls":15},2,null,3,{"$nulls":6},"Exam",3,"Statistics I.",null,"Málovics György","Málovics György"]
[null,"60D507","Introducion to Social Research",{"$nulls":16},1,2,{"$nulls":6},"Term\nMark",2,"Statistics I.",null,"Málovics György","Juhász Judit, Méreiné Berki Boglárka"]
[null,"60D503-2","Internship I",{"$nulls":19},"12 weeks",25,null,null,null,"Term mark",25,"150 credits",null,null,"Technical Assistant"]
[null,"60D504","Internship II",{"$nulls":22},"12 weeks",25,"Term mark",25,"Internship I",null,null,"Technical Assistant"]
[null,null,"Sum total credits of D Module",{"$nulls":25},60]
[]
[null,null,"Sum total credits of the full programme",{"$nulls":25},{"$f":"AC162+AC152+AC86+AC75+AC67+AC41","v":240}]